Workbook

Sheet Sheet1
A1: 山东玲珑英城医院防火门招标报价表
A3: 序号 | B3: 物资名称 | C3: 规格型号 | D3: 单位 | E3: 数量 | F3: 备注 | G3: 每樘面积 （平方米） | H3: 总面积 （平方米） | I3: 单价 （元/平方米） | J3: 合计 （元） | K3: 备注
A4: 1 | B4: FM丙0618 | C4: 600*1800 | D4: 樘 | E4: 105 | F4: 木质丙级防火门 （门洞距地300） | G4: =0.6*1.8 -> 1.08 | H4: =G4*E4 -> 113.4 | K4: 甲级防火门耐火极限1.5h 乙级防火门耐火极限1.0h 丙级防火门耐火极限0.5h 乙级防火窗耐火极限1.0h 防火门、防火窗必须使用在消防部门备案的产品，负责产品检测并通过消防验收
A5: 2 | B5: FM丙0821 | C5: 800*2100 | D5: 樘 | E5: 1 | F5: 木质丙级防火门 （门洞距地300） | G5: =0.8*2.1 -> 1.68 | H5: =G5*E5 -> 1.68
A6: 3 | B6: FM丙1021 | C6: 1000*2100 | D6: 樘 | E6: 17 | F6: 木质丙级防火门 （门洞距地300） | G6: =1*2.1 -> 2.1 | H6: 35.7
A7: 4 | B7: FM丙1821 | C7: 1800*2100 | D7: 樘 | E7: 17 | F7: 木质丙级防火门 （门洞距地300） | G7: =1.8*2.1 -> 3.78 | H7: 64.26
A8: 5 | B8: FM乙1021 | C8: 1000*2100 | D8: 樘 | E8: 1 | F8: 钢木质乙级防火门 | G8: =1*2.1 -> 2.1 | H8: 2.1
A9: 6 | B9: FM乙1023 | C9: 1000*2300 | D9: 樘 | E9: 40 | F9: 木质乙级防火门 | G9: =1*2.3 -> 2.3 | H9: 92
A10: 7 | B10: FM乙1023 | C10: 1000*2300 | D10: 樘 | E10: 3 | F10: 木质乙级防火门； 内视窗尺寸850*200 | G10: =1*2.3 -> 2.3 | H10: 6.9
A11: 8 | B11: FM乙1024 | C11: 1000*2400 | D11: 樘 | E11: 10 | F11: 木质乙级防火门； 内视窗尺寸850*200 | G11: =1*2.4 -> 2.4 | H11: 24
A12: 9 | B12: FM乙1321 | C12: 1300*2100 | D12: 樘 | E12: 2 | F12: 木质乙级防火门 | G12: =1.3*2.1 -> 2.73 | H12: 5.46
A13: 10 | B13: FM乙1523 | C13: 1500*2300 | D13: 樘 | E13: 11 | F13: 钢木质乙级防火门 | G13: =1.5*2.3 -> 3.45 | H13: 37.95
A14: 11 | B14: FM乙1523 | C14: 1500*2300 | D14: 樘 | E14: 22 | F14: 木质乙级防火门 | G14: =1.5*2.3 -> 3.45 | H14: 75.9
A15: 12 | B15: FM乙1523 | C15: 1500*2300 | D15: 樘 | E15: 23 | F15: 木质乙级防火门； 内视窗尺寸850*200 | G15: =1.5*2.3 -> 3.45 | H15: 79.35
A16: 13 | B16: FM乙1823 | C16: 1800*2300 | D16: 樘 | E16: 5 | F16: 钢木质乙级防火门 | G16: =1.8*2.3 -> 4.14 | H16: 20.7
A17: 14 | B17: FM乙1823 | C17: 1800*2300 | D17: 樘 | E17: 30 | F17: 木质乙级防火门； 内视窗尺寸850*200 | G17: =1.8*2.3 -> 4.14 | H17: =G17*E17 -> 124.2
A18: 15 | B18: FM乙1221 | C18: 1200*2100 | D18: 樘 | E18: 1 | F18: 木质乙级防火门； 内视窗尺寸850*200 | G18: =1.2*2.1 -> 2.52 | H18: 2.52
A19: 16 | B19: FM乙1521 | C19: 1500*2100 | D19: 樘 | E19: 3 | F19: 钢木质乙级防火门 | G19: =1.5*2.1 -> 3.15 | H19: 9.45
A20: 17 | B20: FM乙1521 | C20: 1500*2100 | D20: 樘 | E20: 15 | F20: 木质乙级防火门； 内视窗尺寸850*200 | G20: =1.5*2.1 -> 3.15 | H20: 47.25
A21: 18 | B21: GFM甲1521 | C21: 1500*2100 | D21: 樘 | E21: 5 | F21: 木质甲级防火门 | G21: =1.5*2.1 -> 3.15 | H21: 15.75
A22: 19 | B22: FM甲0621 | C22: 600*2100 | D22: 樘 | E22: 1 | F22: 钢木质甲级防火门 | G22: =0.6*2.1 -> 1.26 | H22: 1.26
A23: 20 | B23: FM甲0621 | C23: 600*2100 | D23: 樘 | E23: 16 | F23: 木质甲级防火门 | G23: =0.6*2.1 -> 1.26 | H23: 20.16
A24: 21 | B24: FM甲1021 | C24: 1000*2100 | D24: 樘 | E24: 19 | F24: 钢木质甲级防火门 | G24: =1*2.1 -> 2.1 | H24: 39.9
A25: 22 | B25: FM甲1021 | C25: 1000*2100 | D25: 樘 | E25: 31 | F25: 木质甲级防火门 | G25: =1*2.1 -> 2.1 | H25: 65.1
A26: 23 | B26: FM甲1023 | C26: 1000*2300 | D26: 樘 | E26: 3 | F26: 钢木质甲级防火门 | G26: =1*2.3 -> 2.3 | H26: 6.9
A27: 24 | B27: FM甲1523 | C27: 1500*2300 | D27: 樘 | E27: 13 | F27: 钢木质甲级防火门 | G27: =1.5*2.3 -> 3.45 | H27: 44.85
A28: 25 | B28: FM甲1523 | C28: 1500*2300 | D28: 樘 | E28: 14 | F28: 木质甲级防火门； 内视窗尺寸850*200 | G28: =1.5*2.3 -> 3.45 | H28: 48.3
A29: 26 | B29: FM甲1821 | C29: 1800*2100 | D29: 樘 | E29: 3 | F29: 钢木质甲级防火门 | G29: =1.8*2.1 -> 3.78 | H29: 11.34
A30: 27 | B30: FM甲1823 | C30: 1800*2300 | D30: 樘 | E30: 14 | F30: 木质甲级防火门； 内视窗尺寸850*200 | G30: =1.8*2.3 -> 4.14 | H30: 57.96
A31: 28 | B31: FM甲2023 | C31: 2000*2300 | D31: 樘 | E31: 13 | F31: 钢木质甲级防火门 | G31: =2*2.3 -> 4.6 | H31: 59.8
A32: 29 | B32: GFM甲1021 | C32: 1000*2100 | D32: 樘 | E32: 1 | F32: 木质甲级防火门 | G32: =1*2.1 -> 2.1 | H32: 2.1
A33: 30 | B33: GFM甲1523 | C33: 1500*2300 | D33: 樘 | E33: 5 | F33: 钢木质甲级防火门 | G33: =1.5*2.3 -> 3.45 | H33: 17.25
A34: 31 | B34: GFM甲1523 | C34: 1500*2300 | D34: 樘 | E34: 28 | F34: 木质甲级防火门 | G34: =1.5*2.3 -> 3.45 | H34: 96.6
A35: 32 | B35: FC乙1215 | C35: 1200*1500 | D35: 樘 | E35: 1 | F35: 钢制乙级防火窗 | G35: =1.2*1.5 -> 1.8 | H35: 1.8
A36: 33 | B36: FC乙1522 | C36: 1500*2200 | D36: 樘 | E36: 16 | F36: 钢制乙级防火窗 | G36: =1.5*2.2 -> 3.3 | H36: 52.8
A37: 34 | B37: FC乙1525 | C37: 1500*2500 | D37: 樘 | E37: 2 | F37: 钢制乙级防火窗 | G37: =1.5*2.5 -> 3.75 | H37: 7.5
A38: 35 | B38: FC乙1528 | C38: 1500*2800 | D38: 樘 | E38: 4 | F38: 钢制乙级防火窗 | G38: =1.5*2.8 -> 4.2 | H38: 16.8
A39: 36 | B39: FC乙3228 | C39: 3200*2800 | D39: 樘 | E39: 1 | F39: 钢制乙级防火窗 | G39: =3.2*2.8 -> 8.96 | H39: 8.96
A40: 37 | B40: FC乙3230 | C40: 3200*3000 | D40: 樘 | E40: 1 | F40: 钢制乙级防火窗 | G40: =3.2*3 -> 9.6 | H40: 9.6
A41: 38 | B41: FC乙3233 | C41: 3200*3300 | D41: 樘 | E41: 1 | F41: 钢制乙级防火窗 | G41: =3.2*3.3 -> 10.56 | H41: 10.56
A42: 39 | B42: FHJLM7038 | C42: 7000*3800 | D42: 樘 | E42: 1 | F42: 双轨双帘无机布特级防火卷帘 | G42: =7*3.8 -> 26.6 | H42: 26.6
H43: =SUM(H4:H42) -> 1364.71
A44: 1、在招标过程中，所有参与项目的竞标方必须根据技术要求提供样品物业公司封样，同时提供样品门同时提供不小于400mm*400mm切角（门框、门扇）样品要求能展示出详细的内部构造，注明品牌、生产厂家、型号，锁具、合页、玻璃等，并注明品牌、生产厂家等。详情请咨询： 刘爱华18705356361。 2、采用工程量清单报价，报价中包含材料费、人工费、机械费、运输费、安装费、管理费、利润、税金及项目检测验收费用等所有费用，不再支付其他任何费用。 3、规格数量详见附件，中标后需现场测量按照现场实际供货，结算时单价不变，按项目实际数量按实结算。 4、质量标准：严格按照国标防火级别要求要求，医院门表面处理保证不掉色，颜色同医院一期综合大楼病房门门颜色一样，款式及颜色均按照一期加工制作。防火卷帘严格按照国家标准及图纸要求制作，乙方积极配合消防联动调试并保证消防验收合格，价格中包含安装费、运输费，背运费、税票，检测费等一切费用。其它技术要求详见附件。 5、按照甲方要求分批供货，签订合同后，首批20天加工完毕供货到工地现场，剩余按甲方工程进度及时供货到位。 6、质量要求（保修期）：质量保修期自消防验收合格后交付使用之日起贰年，终身维修。保修期内，除因使用不当、人为所致及不可抗拒因素外，其他原因导致的损坏，乙方接到通知8小时内履行免费保修义务，乙方在规定时间内没有到现场维修，甲方可自行找人维修，所发生的一切费用和损失均由乙方承担。保修期过后乙方对本工程终身负责维护、维修只收取成本费。竞标单位必须在投标文件中有详细的售后服务体系，内容至少包括免费质量保证年限，售后服务人员配备情况、维修响应时间，质保期满后服务内容等。 7、 付款方式：材料到达现场后，付至已到场材料金额的30%，安装完毕验收合格后付到工程总额的90%，剩余10%作为质保金，质保期满无质量问题一次性无息付清。采用商业承兑汇票付款，开具增值税普通发票。

Sheet Sheet2

Sheet Sheet3
